bitfinex-derivatives/quotes_ETHF0:USTF0_20241005
["timestamp","ask_amount","ask_price","bid_price","bid_amount"]
[1728136878511,0.3893,2412.1,2411.9,1.78021]
[1728136878921,0.3893,2412.1,2412.0,0.2902]
[1728136879223,0.3942,2412.3,2411.9,1.49]
[1728136879413,0.3942,2412.3,2412.1,1.78018]
[1728136879414,0.7835,2412.3,2412.1,1.78018]
[1728136879613,0.7835,2412.3,2412.2,0.4119]
[1728136879814,3.2078,2412.5,2412.2,0.8399]
[1728136880010,0.29015,2412.4,2412.3,1.49]
[1728136880211,3.2078,2412.5,2412.3,1.78015]
[1728136880411,3.2078,2412.5,2412.4,1.49]
[1728136880915,0.68432,2412.7,2412.4,1.78015]
[1728136881115,0.68432,2412.7,2412.6,1.49]
[1728136881813,0.3942,2412.7,2412.6,1.49]
[1728136883116,3.2078,2412.9,2412.6,1.78012]
[1728136883311,3.2078,2412.9,2412.7,1.8982]
[1728136883510,3.2078,2412.9,2412.7,2.59621]
[1728136883719,3.2078,2412.9,2412.8,0.2901]
[1728136884118,3.2078,2412.9,2412.7,2.3061]
[1728136884324,3.2078,2412.9,2412.8,0.2901]
[1728136884515,3.2078,2412.9,2412.7,2.3061]
[1728136884822,3.2078,2412.9,2412.7,2.5962]
[1728136885016,3.2078,2412.9,2412.7,0.8161]
[1728136885215,0.29012,2412.7,2412.3,1.78016]
[1728136885611,0.3991,2412.6,2412.3,1.78016]
[1728136886211,0.3991,2412.6,2412.3,1.49]
[1728136886410,0.3991,2412.6,2412.4,0.29015]
[1728136887012,0.3991,2412.6,2412.3,1.78015]
[1728136887724,0.3991,2412.6,2412.4,0.29014]
[1728136888418,2.59571,2412.8,2412.5,0.29014]
[1728136888419,0.71141,2412.8,2412.5,0.29014]
[1728136888617,1.11261,2412.8,2412.5,1.78014]
[1728136889327,1.11261,2412.8,2412.5,1.78013]
[1728136890021,0.8225,2412.8,2412.5,1.78013]
[1728136893927,4.0303,2412.8,2412.5,1.78013]
[1728136896829,4.32041,2412.8,2412.4,0.29014]
[1728136897124,4.0303,2412.8,2412.6,1.49]
[1728136899223,4.0303,2412.8,2412.5,0.29013]
[1728136899224,8.1751,2412.8,2412.5,1.49]
[1728136899432,8.1751,2412.8,2412.5,1.78013]
[1728136899433,4.0303,2412.8,2412.5,1.78013]
[1728136900227,0.8225,2412.8,2412.5,1.78013]
[1728136900429,0.8225,2412.8,2412.5,1.49]
[1728136900632,0.8225,2412.8,2412.5,1.78013]
[1728136902933,1.1126,2412.8,2412.5,1.78013]
[1728136903136,0.8225,2412.8,2412.5,1.78013]
[1728136903331,0.8225,2412.8,2412.6,0.4069]
[1728136903939,4.1448,2412.7,2412.5,0.29013]
[1728136904245,5.9989,2412.6,2411.9,1.9143]
[1728136904441,0.29017,2412.2,2411.9,2.2045]
[1728136904636,0.7988,2412.1,2411.9,1.9143]
[1728136905037,0.7988,2412.1,2411.9,2.2045]
[1728136905437,0.29021,2411.9,2411.7,0.29023]
[1728136905629,3.2078,2411.9,2411.6,1.49]
[1728136906143,0.29023,2411.8,2411.6,1.78024]
[1728136906731,0.404,2411.7,2411.6,1.78024]
[1728136907636,0.404,2411.7,2411.5,0.4243]
[1728136907637,0.69424,2411.7,2411.5,0.29026]
[1728136907849,0.3913,2411.6,2411.5,0.29026]
[1728136908529,0.68155,2411.6,2411.4,2.18716]
[1728136908933,0.3913,2411.6,2411.4,2.18716]
[1728136909938,0.68154,2411.6,2411.4,2.18716]
[1728136910443,0.3913,2411.6,2411.4,2.18716]
[1728136911840,0.3913,2411.6,2411.4,0.4069]
[1728136912140,0.3913,2411.6,2411.4,1.8969]
[1728136912141,0.68155,2411.6,2411.4,1.8969]
[1728136913239,0.68155,2411.6,2411.4,2.18717]
[1728136914040,0.68155,2411.6,2411.4,1.8969]
[1728136914837,0.68155,2411.6,2411.4,2.18717]
[1728136915037,3.6118,2411.7,2411.5,1.49]
[1728136915336,0.4021,2412.0,2411.6,1.78024]
[1728136915337,1.18923,2411.8,2411.6,1.78024]
[1728136916246,0.899,2411.8,2411.6,1.78024]
[1728136916543,0.899,2411.8,2411.6,1.78023]
[1728136916746,0.68521,2411.9,2411.7,0.29023]
[1728136916945,1.58421,2411.9,2411.8,0.4017]
[1728136917341,0.29021,2411.9,2411.8,1.8917]
[1728136917643,1.18921,2411.9,2411.8,1.8917]
[1728136917845,1.18921,2411.9,2411.8,2.2841]
[1728136921140,3.2078,2412.0,2411.8,2.2841]
[1728136921341,0.2902,2412.0,2411.8,2.57432]
[1728136921743,0.2902,2412.0,2411.8,2.2841]
[1728136922243,1.3062,2412.1,2411.8,2.2841]
[1728136922451,0.29021,2411.9,2411.8,0.7941]
[1728136923451,0.29021,2411.9,2411.8,0.4017]
[1728136927655,3.498,2412.0,2411.8,0.4017]
[1728136927955,3.2078,2412.0,2411.8,0.69192]
[1728136928158,3.498,2412.0,2411.9,0.4264]
[1728136928645,0.29019,2412.1,2411.9,0.4264]
[1728136928850,1.18919,2412.1,2411.9,0.8348]
[1728136929951,0.899,2412.1,2411.9,0.8348]
[1728136930451,1.18919,2412.1,2411.9,0.8348]
[1728136930848,0.29019,2412.1,2411.9,0.8348]
[1728136931849,0.389,2412.2,2411.9,0.4264]
[1728136932158,0.2902,2412.0,2411.9,0.4264]
[1728136934359,0.3951,2412.1,2411.8,0.4017]
[1728136934559,0.68529,2412.1,2411.9,0.4118]
[1728136935155,0.29019,2412.1,2411.9,0.4118]
[1728136935361,1.288,2412.2,2411.9,0.8052]
[1728136935555,0.2902,2412.0,2411.9,0.8052]
[1728136936261,0.67918,2412.2,2411.9,1.0954]
[1728136936462,0.67918,2412.2,2411.9,0.8052]
[1728136936662,0.29019,2412.1,2411.9,0.8052]
[1728136936865,0.29018,2412.1,2411.9,0.8052]
[1728136937964,0.2902,2412.0,2411.9,0.8052]
[1728136938765,0.2902,2412.0,2411.9,0.4118]
[1728136938960,7.3542,2412.0,2411.4,1.08720874]
[1728136939268,7.3542,2412.0,2411.5,0.8075]
[1728136939269,0.29025,2411.6,2411.5,0.8075]
[1728136941466,3.2078,2411.7,2411.5,0.8075]
[1728136942463,0.67823,2411.8,2411.5,0.8075]
[1728136943061,0.29022,2411.9,2411.5,4.0475]
[1728136943257,0.6778,2412.0,2411.7,0.29023]
[1728136943468,0.2902,2412.0,2411.5,4.0475]
[1728136943661,4.5315,2412.1,2411.8,0.29022]
[1728136943662,3.49799,2412.1,2411.8,0.29022]
[1728136943861,3.49799,2412.1,2411.7,3.24]
[1728136943862,3.49799,2412.1,2411.9,1.2087]
[1728136944672,3.2078,2412.1,2411.9,1.2087]
[1728136945470,3.2078,2412.1,2411.9,1.4989]
[1728136945772,3.2078,2412.1,2411.9,2.9889]
[1728136947071,0.29018,2412.2,2411.9,2.9889]
[1728136949574,5.1225,2412.3,2411.9,1.86880874]
[1728136949781,5.1225,2412.3,2411.9,0.7816]
[1728136949782,1.7802,2412.0,2411.9,0.7816]
[1728136951682,1.7802,2412.0,2411.9,0.3901]
[1728136951871,0.2902,2412.0,2411.9,0.3901]
[1728136953777,0.71349,2412.1,2411.9,0.3901]
[1728136953977,2.67918,2412.2,2411.9,0.3901]
[1728136954169,5.1225,2412.3,2411.9,0.3901]
[1728136954387,6.31167,2412.3,2411.9,0.6803]
[1728136955077,0.29017,2412.2,2411.9,0.6803]
[1728136955874,1.49,2412.2,2411.9,0.3901]
[1728136956178,0.2902,2412.0,2411.9,0.3901]
[1728136956866,4.988,2412.0,2411.9,0.3901]
[1728136958476,4.988,2412.0,2411.6,1.37744874]
[1728136958477,0.29023,2411.7,2411.6,1.08720874]
[1728136958669,0.29024,2411.6,2411.5,0.798]
[1728136958871,3.2078,2411.7,2411.5,0.798]
[1728136959072,3.49804,2411.7,2411.5,0.798]
[1728136959272,0.29024,2411.6,2411.5,0.798]
[1728136962079,3.49804,2411.7,2411.5,0.798]
[1728136962278,3.2078,2411.7,2411.5,1.08826]
[1728136962484,2.04171,2411.9,2411.5,1.08826]
[1728136963286,2.04171,2411.9,2411.6,0.29024]
[1728136963473,1.14271,2411.9,2411.6,0.29024]
[1728136963679,0.8525,2411.9,2411.6,0.29024]
[1728136963880,1.14271,2411.9,2411.6,0.29024]
[1728136966388,4.35051,2411.9,2411.6,0.29024]
[1728136966590,4.35051,2411.9,2411.5,1.08825]
[1728136967590,4.35051,2411.9,2411.6,0.29024]
[1728136968684,4.35051,2411.9,2411.5,1.88520874]
[1728136968685,4.35051,2411.9,2411.5,2.17545874]
[1728136978395,4.35051,2411.9,2411.6,0.403]
[1728136979700,5.84051,2411.9,2411.6,0.403]
[1728136980698,0.29023,2411.8,2411.5,1.88520874]
[1728136980995,0.29023,2411.8,2411.5,2.17545874]
[1728136981598,5.84052,2411.9,2411.5,2.17545874]
[1728136981996,5.84052,2411.9,2411.6,0.29024]
[1728136982402,0.096,2412.2,2411.8,4.98802]
[1728136982607,0.4026,2412.3,2412.1,1.49]
[1728136982796,0.4026,2412.3,2412.2,0.4156]
[1728136983296,0.69276,2412.3,2412.2,0.4156]
[1728136983702,0.4026,2412.3,2412.2,0.4156]
[1728136983893,0.4026,2412.3,2412.2,4.5612]
[1728136984294,0.4026,2412.3,2412.2,0.4156]
[1728136985197,0.4026,2412.3,2411.8,1.08720874]
[1728136985198,0.29021,2411.9,2411.8,1.08720874]
[1728136985397,0.29022,2411.8,2411.5,1.08720874]
[1728136985697,0.4048,2411.7,2411.5,1.08720874]
[1728136986297,0.4048,2411.7,2411.6,1.37744874]
[1728136986503,0.4048,2411.7,2411.6,2.86186227]
[1728136986999,0.4048,2411.7,2411.6,3.40554137]
[1728136987703,0.4048,2411.7,2411.6,2.8605982]
[1728136988201,0.4048,2411.7,2411.6,1.77465353]
[1728136988604,0.4048,2411.7,2411.6,7.00702483]
[1728136990101,0.4048,2411.7,2411.6,2.86062483]
[1728136990298,0.4048,2411.7,2411.6,5.92105353]
[1728136990501,0.4048,2411.7,2411.6,7.00704942]
[1728136990916,0.4048,2411.7,2411.6,7.00705225]
[1728136991609,0.4048,2411.7,2411.6,1.37623872]
[1728136991803,0.4048,2411.7,2411.6,7.00724571]
[1728136991999,0.4048,2411.7,2411.6,1.37623872]
[1728136996324,0.4048,2411.7,2411.6,2.86127348]
[1728137001226,0.4048,2411.7,2411.6,1.77527476]
[1728137002318,0.4048,2411.7,2411.6,3.4061626]
[1728137002626,0.4048,2411.7,2411.6,1.77527476]
[1728137002826,0.4048,2411.7,2411.6,3.4061626]
[1728137003727,0.4048,2411.7,2411.6,3.40636743]
[1728137004534,0.4048,2411.7,2411.6,1.77547959]
[1728137004924,0.4048,2411.7,2411.6,2.86201807]
[1728137005320,0.4048,2411.7,2411.6,3.40636743]
[1728137006029,0.4048,2411.7,2411.6,3.40644703]
[1728137008636,0.8152,2412.0,2411.6,7.26298277]
[1728137008824,0.4189,2411.9,2411.8,0.29021]
[1728137009937,0.4189,2411.9,2411.8,0.29022]
[1728137011425,0.4189,2411.9,2411.8,1.37709787]
[1728137012832,0.4189,2411.9,2411.8,2.86285423]
[1728137013342,0.4189,2411.9,2411.8,2.86285818]
[1728137016345,0.4189,2411.9,2411.8,3.40686815]
[1728137016535,0.4189,2411.9,2411.8,3.11664815]
[1728137016838,0.4189,2411.9,2411.8,2.86285814]
[1728137017139,0.4189,2411.9,2411.8,3.40686815]
[1728137017537,0.4189,2411.9,2411.8,4.89686815]
[1728137018246,0.4189,2411.9,2411.8,4.89684411]
[1728137020342,0.4189,2411.9,2411.8,5.43538292]
[1728137021244,0.4189,2411.9,2411.8,9.58178292]
[1728137021435,0.4284,2412.3,2411.8,12.98809582]
[1728137021637,0.4284,2412.3,2412.1,1.08663673]
[1728137021638,0.3869,2412.2,2412.1,1.08663673]
[1728137021843,0.3869,2412.2,2412.0,4.29443673]
[1728137021844,2.16707,2412.2,2412.0,4.29443673]
[1728137022143,2.16707,2412.2,2412.0,3.2078]
[1728137023139,1.8769,2412.2,2412.0,3.2078]
[1728137023341,2.16707,2412.2,2412.0,3.2078]
[1728137024247,2.16707,2412.2,2412.0,3.49799]
[1728137024445,2.16707,2412.2,2412.0,3.2078]
[1728137025243,1.8769,2412.2,2412.0,4.29443673]
[1728137025441,0.3869,2412.2,2412.0,4.58462673]
[1728137025643,0.3869,2412.2,2412.0,1.37682673]
[1728137026641,0.3869,2412.2,2412.0,1.08663673]
[1728137026838,0.3869,2412.2,2412.1,0.29018]
[1728137027143,0.3869,2412.2,2412.1,13.88311485]
[1728137027341,0.3869,2412.2,2412.1,12.67385975]
[1728137027643,0.3869,2412.2,2412.1,12.67358273]
[1728137027839,0.3869,2412.2,2412.1,14.84300938]
[1728137028241,0.3869,2412.2,2412.1,12.67358273]
[1728137030045,0.3869,2412.2,2412.1,12.67311426]
[1728137030847,0.3869,2412.2,2412.1,14.30218775]
[1728137031340,0.3869,2412.2,2412.1,11.68400775]
[1728137031541,0.67707,2412.2,2412.1,3.11391587]
[1728137031741,0.67707,2412.2,2412.0,1.37619514]
[1728137031944,0.8035,2412.1,2412.0,1.37619514]
[1728137032141,0.8035,2412.1,2412.0,10.04923366]
[1728137033337,0.8035,2412.1,2412.0,11.53923366]
[1728137033845,0.8035,2412.1,2412.0,13.02374126]
[1728137035843,0.8035,2412.1,2412.0,13.02363118]
[1728137036950,0.8035,2412.1,2412.0,11.53923366]
[1728137037452,0.8035,2412.1,2412.0,10.04923366]
[1728137041455,6.81583306,2413.5,2412.0,15.39463366]
[1728137041456,0.4163,2412.6,2412.0,15.39463366]
[1728137041649,1.2497,2412.6,2412.4,1.78015]
[1728137041949,1.2497,2412.6,2412.5,0.394]
[1728137042154,0.096,2413.0,2412.5,14.54956329]
[1728137042445,3.2078,2413.1,2412.5,14.54956329]
[1728137042446,0.4238,2413.1,2412.9,1.49]
[1728137042758,0.4238,2413.1,2412.9,1.78008]
[1728137042951,0.4238,2413.1,2412.9,1.49]
[1728137044253,0.4238,2413.1,2412.9,1.78009]
[1728137045457,0.4238,2413.1,2412.9,2.20889]
[1728137045751,0.4238,2413.1,2412.9,1.9188]
[1728137045953,0.4238,2413.1,2413.0,0.29008]
[1728137049959,0.4238,2413.1,2413.0,3.49788]
[1728137051559,0.096,2413.5,2413.4,0.29003]
[1728137051757,0.83,2413.8,2413.4,1.49]
[1728137051758,1.2294,2413.6,2413.4,1.49]
[1728137051957,1.2294,2413.6,2413.5,0.29002]
[1728137052852,0.8326,2413.6,2413.5,0.29002]
[1728137053061,0.4222,2413.6,2413.5,0.29002]
[1728137054357,0.816,2413.8,2413.5,0.29002]
[1728137054558,0.816,2413.8,2413.6,1.49]
[1728137054559,1.2225,2413.8,2413.6,1.49]
[1728137055168,1.51248,2413.8,2413.6,1.49]
[1728137057659,0.4065,2413.8,2413.7,1.8902]
[1728137059661,0.4065,2413.8,2413.7,2.18019]
[1728137060067,0.9081,2414.1,2413.7,1.8902]
[1728137060267,1.2318,2414.1,2413.9,1.77996]
[1728137061561,1.2318,2414.1,2413.9,1.77997]
[1728137064372,1.2318,2414.1,2414.0,0.28996]
[1728137064569,0.4197,2414.1,2414.0,0.28996]
[1728137068377,0.4001,2414.3,2414.1,0.28993]
[1728137068680,0.4216,2414.2,2414.1,0.28993]
[1728137071181,0.4216,2414.2,2414.1,1.77993]
[1728137074383,0.4216,2414.2,2414.1,1.49]
[1728137074587,0.71154,2414.2,2414.1,1.49]
[1728137076788,0.4216,2414.2,2414.1,1.49]
[1728137076993,0.4216,2414.2,2414.1,1.77994]
[1728137077488,0.4216,2414.2,2414.1,1.49]
[1728137077691,0.4216,2414.2,2414.1,1.77994]
[1728137091197,0.4216,2414.2,2414.1,1.49]
[1728137091397,0.4216,2414.2,2414.1,1.77994]
[1728137094202,0.4216,2414.2,2414.1,0.28994]
[1728137094394,0.4216,2414.2,2414.1,1.77994]
[1728137098302,0.4216,2414.2,2414.1,2.86593514]
[1728137101200,0.4216,2414.2,2414.1,4.34996884]
[1728137102311,0.4216,2414.2,2414.1,4.89304719]
[1728137107306,0.4216,2414.2,2414.1,3.2639737]
[1728137107916,0.4216,2414.2,2414.1,5.43340035]
[1728137108112,0.4216,2414.2,2414.1,5.82740035]
[1728137108907,0.4216,2414.2,2414.1,8.79898331]
[1728137110720,0.4216,2414.2,2414.1,8.80177076]
[1728137111113,0.4216,2414.2,2414.1,12.00957076]
[1728137112219,0.4216,2414.2,2414.1,9.84014411]
[1728137112425,0.4216,2414.2,2414.1,12.55192742]
[1728137112620,0.4216,2414.2,2414.1,9.84014411]
[1728137113124,0.4216,2414.2,2414.1,12.55192742]
[1728137113320,0.4289,2414.5,2414.3,0.28991]
[1728137113525,0.4079,2414.4,2414.3,1.77991]
[1728137113822,0.4079,2414.4,2414.3,3.26606609]
[1728137115425,0.4079,2414.4,2414.3,3.26597961]
[1728137116427,0.4079,2414.4,2414.3,5.43964746]
[1728137118229,0.4079,2414.4,2414.3,3.26597961]
[1728137118926,0.427,2414.7,2414.3,5.14973746]
[1728137119229,0.4204,2414.6,2414.5,1.9196179]
[1728137119428,0.4204,2414.6,2414.5,3.40568751]
[1728137120324,0.4204,2414.6,2414.5,3.40510499]
[1728137120628,0.4204,2414.6,2414.5,1.77537709]
[1728137121023,0.4204,2414.6,2414.5,5.43904494]
[1728137121229,0.4204,2414.6,2414.5,5.83164494]
[1728137121430,0.4204,2414.6,2414.5,8.80135794]
[1728137121830,0.4204,2414.6,2414.5,5.83164494]
[1728137122934,0.4028,2414.9,2414.6,0.28987]
[1728137123138,0.4023,2414.8,2414.7,2.86092446]
[1728137123440,0.4023,2414.8,2414.7,4.58323737]
[1728137123642,0.4023,2414.8,2414.7,4.29336737]
[1728137123932,0.4023,2414.8,2414.7,7.5574111]
[1728137124334,0.4023,2414.8,2414.7,10.21483737]
[1728137124537,0.4023,2414.8,2414.7,11.6986786]
[1728137125029,0.4023,2414.8,2414.7,11.69867348]
[1728137125231,0.4023,2414.8,2414.7,11.69792865]
[1728137125442,0.4023,2414.8,2414.7,12.24145717]
[1728137125832,4.43177169,2415.3,2414.7,11.95158717]
[1728137126029,1.53712,2415.2,2415.1,1.49]
[1728137128233,1.2473,2415.2,2415.1,1.49]
[1728137129935,1.2473,2415.2,2415.1,1.77982]
[1728137130144,0.4023,2415.2,2415.1,1.77982]
[1728137133433,0.69211,2415.2,2415.1,1.49]
[1728137133640,1.08041,2415.2,2415.1,1.49]
[1728137134038,0.7906,2415.2,2415.1,1.49]
[1728137136340,0.7906,2415.2,2415.1,1.77982]
[1728137140143,1.08042,2415.2,2415.0,1.49]
[1728137140344,0.7906,2415.2,2415.0,1.49]
[1728137140641,0.28983,2415.1,2415.0,1.49]
[1728137158451,1.08042,2415.2,2415.0,1.49]
[1728137158653,0.7906,2415.2,2415.0,1.49]
[1728137158858,0.28982,2415.1,2415.0,1.49]
[1728137161148,0.7906,2415.2,2414.9,1.08481943]
[1728137161350,0.7906,2415.2,2414.7,1.50041943]
[1728137161351,0.28985,2414.9,2414.7,1.50041943]
[1728137161551,0.7903,2414.8,2414.7,1.79028943]
[1728137161756,0.3936,2414.8,2414.7,3.28028943]
[1728137161952,0.3936,2414.8,2414.7,4.76320457]
[1728137162148,0.3936,2414.8,2414.7,3.28028943]
[1728137162358,0.3936,2414.8,2414.7,4.76345967]
[1728137162555,0.3936,2414.8,2414.7,4.47358967]
[1728137163459,0.3936,2414.8,2414.7,4.47361758]
[1728137163662,0.3936,2414.8,2414.7,3.38877024]
[1728137163854,0.3936,2414.8,2414.7,5.0171213]
[1728137164056,0.3936,2414.8,2414.7,4.47360984]
[1728137164250,0.3936,2414.8,2414.7,5.0171213]
[1728137168360,0.68346,2414.8,2414.7,3.1115213]
[1728137168560,6.4306,2414.8,2414.5,1.08566038]
[1728137168765,0.28988,2414.6,2414.4,1.08566038]
[1728137168967,0.2899,2414.5,2414.4,1.08566038]
[1728137169662,0.2899,2414.5,2414.3,0.4288]
[1728137169969,0.7932,2414.4,2414.3,1.9188]
[1728137170861,1.08311,2414.4,2414.3,1.9188]
[1728137171065,0.7932,2414.4,2414.3,1.9188]
[1728137171762,1.2073,2414.4,2414.3,1.9188]
[1728137172968,5.63881,2414.4,2414.3,1.49]
[1728137173169,5.3489,2414.4,2414.3,1.49]
[1728137174162,5.63881,2414.4,2414.1,0.8431]
[1728137174373,0.28993,2414.2,2414.1,0.4179]
[1728137177265,0.28993,2414.2,2414.1,1.9079]
[1728137179377,0.28993,2414.3,2414.1,2.19784]
[1728137179776,0.28993,2414.3,2414.1,1.9079]
[1728137181263,0.28993,2414.2,2414.1,1.9079]
[1728137184668,0.28993,2414.2,2414.0,1.49]
[1728137184669,0.28994,2414.1,2414.0,1.49]
[1728137184873,0.70974,2414.1,2414.0,1.49]
[1728137186471,0.70974,2414.1,2413.8,3.997]
[1728137186472,0.4198,2414.1,2413.8,3.2078]
[1728137186673,0.4198,2414.1,2413.7,0.4023]
[1728137186674,0.28998,2413.8,2413.7,0.4023]
[1728137187172,4.43318,2413.8,2413.7,0.4023]
[1728137187966,0.28998,2413.8,2413.7,0.4023]
[1728137188163,0.28998,2413.8,2413.5,1.49]
[1728137188164,0.29,2413.6,2413.5,1.49]
[1728137188566,0.29,2413.6,2413.5,1.8923]
[1728137188972,11.9469,2413.6,2413.0,3.2078]
[1728137189173,0.29006,2413.1,2413.0,0.4023]
[1728137189372,0.29006,2413.1,2412.8,0.69069]
[1728137189373,0.29007,2413.1,2412.8,0.69069]
[1728137189570,1.10718,2413.0,2412.8,1.08309]
[1728137190173,0.8171,2413.0,2412.8,0.793]
[1728137190368,0.8171,2413.0,2412.8,2.283]
[1728137190582,3.49785,2413.3,2413.1,0.29006]
[1728137190768,1.26805,2413.3,2413.2,1.8824]
[1728137191279,0.29005,2413.3,2413.2,1.8824]
[1728137193266,0.29005,2413.3,2413.2,0.3924]
[1728137194379,1.78005,2413.3,2413.2,0.3924]
[1728137194680,1.78005,2413.3,2412.3,0.096]
[1728137194681,15.56692,2413.3,2412.3,0.096]
[1728137194880,4.98791,2412.8,2412.5,0.69883]
[1728137195368,1.78011,2412.8,2412.5,0.69883]
[1728137195676,0.29011,2412.8,2412.5,0.69883]
[1728137196081,0.2901,2412.9,2412.6,0.29012]
[1728137197178,0.2901,2412.8,2412.5,0.69883]
[1728137200080,0.2901,2412.8,2412.1,0.096]
[1728137200081,3.52013,2412.6,2412.3,0.29016]
[1728137200274,3.52013,2412.6,2412.4,0.4012]
[1728137200275,0.29014,2412.5,2412.4,0.4012]
[1728137204286,7.26,2412.6,2412.4,0.4012]
[1728137204588,4.32013,2412.6,2412.4,0.69135]
[1728137204781,6.4378,2412.9,2412.4,0.4012]
[1728137204983,6.4378,2412.9,2412.5,0.29013]
[1728137204984,0.29011,2412.8,2412.5,0.29013]
[1728137205280,0.2901,2412.8,2412.5,0.29013]
[1728137205482,0.7179,2412.8,2412.6,0.29012]
[1728137205983,0.7179,2412.8,2412.7,0.3931]
[1728137206581,6.7279,2412.9,2412.7,0.3931]
[1728137206883,6.7279,2412.9,2412.7,0.7865]
[1728137207075,0.2901,2412.8,2412.7,0.7865]
[1728137208785,0.2901,2412.8,2412.7,0.3931]
[1728137213085,0.2901,2412.8,2412.1,0.096]
[1728137213086,0.29017,2412.2,2412.1,0.096]
[1728137213279,0.29017,2412.2,2412.0,0.4218]
[1728137213280,0.29018,2412.1,2412.0,0.4218]
[1728137213476,3.52018,2412.2,2412.0,0.712]
[1728137213680,3.23,2412.2,2412.0,0.4218]
[1728137213881,0.29018,2412.1,2412.0,0.4218]
[1728137218592,0.29018,2412.1,2411.9,0.29021]
[1728137218791,6.72798,2412.2,2411.9,0.29021]
[1728137219389,6.72798,2412.2,2412.0,0.29019]
[1728137220494,6.72798,2412.2,2411.8,0.7821]
[1728137220694,6.72798,2412.2,2411.9,0.2902]
[1728137221696,6.72798,2412.2,2411.8,0.7821]
[1728137221697,6.72798,2412.2,2412.0,0.29019]
[1728137221896,6.4378,2412.2,2411.9,0.29021]
[1728137222090,6.72798,2412.2,2411.9,0.29021]
[1728137222393,0.29018,2412.1,2411.9,0.29021]
[1728137222698,6.72798,2412.2,2411.9,0.29021]
[1728137222888,3.23,2412.0,2411.7,3.2078]
[1728137223107,0.29026,2411.5,2411.4,0.4078]
[1728137223286,3.95558,2411.8,2411.1,0.2903]
[1728137223287,0.29027,2411.4,2411.1,0.2903]
[1728137223491,0.29027,2411.4,2411.2,0.4078]
[1728137223492,0.29028,2411.3,2411.2,0.4078]
[1728137223690,0.29029,2411.2,2411.1,0.3925]
[1728137224089,3.52029,2411.2,2411.1,0.3925]
[1728137224289,3.52029,2411.2,2411.0,0.4078]
[1728137224290,3.23,2411.2,2411.0,0.4078]
[1728137224495,0.2903,2411.1,2411.0,0.4078]
[1728137224691,3.5203,2411.2,2411.0,0.4078]
[1728137225098,3.5203,2411.2,2411.0,0.69812]
[1728137225394,3.23,2411.2,2411.1,0.2903]
[1728137225593,3.52029,2411.2,2411.0,0.69811]
[1728137225794,3.52029,2411.2,2411.0,0.4078]
[1728137226293,3.52029,2411.2,2411.0,0.69812]
[1728137226488,0.2903,2411.1,2411.0,0.4078]
[1728137227293,3.6428,2411.2,2411.0,0.4078]
[1728137227497,3.9331,2411.2,2411.0,0.4078]
[1728137228287,0.4128,2411.2,2411.0,0.4078]
[1728137228489,0.4128,2411.2,2411.0,0.69811]
[1728137229195,3.6428,2411.2,2411.0,0.4078]
[1728137229395,0.29032,2411.0,2410.8,0.68284]
[1728137229596,3.52032,2411.0,2410.8,0.3925]
[1728137229891,0.29035,2410.8,2410.6,0.4167]
[1728137230092,0.29035,2410.7,2410.6,0.4167]
[1728137230293,3.49815,2410.7,2410.6,0.4167]
[1728137230490,3.91685,2410.7,2410.6,0.4167]
[1728137230693,0.29037,2410.6,2410.1,0.4117]
[1728137230893,3.52037,2410.6,2410.3,0.29039]
[1728137231089,3.23,2410.6,2410.2,9.76130649]
[1728137231698,3.23,2410.6,2410.4,0.29039]
[1728137232697,6.8565,2410.7,2410.5,0.29038]
[1728137232903,3.23,2410.8,2410.6,0.4063]
[1728137234899,3.52034,2410.8,2410.6,0.4063]
[1728137239101,3.23,2410.7,2410.6,0.4063]
[1728137240102,3.23,2410.8,2410.6,0.4063]
[1728137240301,3.23,2410.8,2410.7,0.4113]
[1728137240705,3.23,2410.8,2410.7,0.70165]
[1728137241499,3.23,2410.8,2410.7,0.4113]
[1728137242315,3.23,2410.8,2410.7,0.70165]
[1728137243812,3.23,2410.8,2410.7,0.4113]
[1728137244915,3.23,2410.8,2410.6,0.4063]
[1728137245623,3.52035,2410.8,2410.6,0.4063]
[1728137248514,3.52035,2410.8,2410.6,0.69666]
[1728137250421,3.52035,2410.8,2410.6,0.4063]
[1728137251510,3.23,2410.8,2410.6,0.69666]
[1728137251711,3.23,2410.8,2410.7,0.29035]
[1728137251910,3.52035,2410.8,2410.6,0.4063]
[1728137252114,3.52035,2410.8,2410.6,0.69666]
[1728137252515,3.23,2410.8,2410.6,0.69666]
[1728137256319,3.633,2410.8,2410.6,0.69666]
[1728137257632,3.92334,2410.8,2410.6,0.69666]
[1728137259620,1.49,2410.7,2410.6,0.69666]
[1728137262630,1.49,2410.7,2410.4,0.3951]
[1728137262831,1.49,2410.5,2410.4,1.07618]
[1728137268326,1.49,2410.5,2410.4,3.64168338]
[1728137269038,1.49,2410.5,2410.4,2.556023]
[1728137269228,1.49,2410.5,2410.4,4.18437406]
[1728137270734,1.49,2410.5,2410.4,3.79034155]
[1728137270938,1.49,2410.5,2410.4,2.9593273]
[1728137271234,1.78038,2410.5,2410.4,1.08771681]
[1728137272027,1.78038,2410.5,2410.4,1.37810681]
[1728137272028,1.49,2410.5,2410.4,1.37810681]
[1728137272429,1.49,2410.5,2410.4,1.08771681]
[1728137272430,1.78038,2410.5,2410.4,1.08771681]
[1728137273035,1.49,2410.5,2410.4,0.29039]
[1728137273236,1.49,2410.5,2410.4,1.37810681]